Cogmind - Beta 9.6 @@@ ROGUE MODE // 2020.07.01 @ 22:29:38 Player: Kenzurith Result: Destroyed by Y-45 Defender with Beam Rifle Performance ------------- Evolutions (2) 1000 Regions Visited (9) 1800 Robots Destroyed (185) 925 Value Destroyed (6581) 6581 Prototype IDs (11) 220 Alien Tech Used (0) 0 Bonus (1261) 1261 TOTAL SCORE: 11787 Bonus ------- High Alert Combat Kills 1271 Entered Garrisons 200 Used RIF Installer 500 Friendly Fire -710 Cogmind --------- Core Integrity 0/550 Matter 490/500 Energy 256/265 System Corruption 1% Temperature Cool (13) Movement Walking (180) Ox2 Location -8/Materials Parts ------- > --- POWER (1) -------- Improved Ion Engine > --- PROPULSION (3) --- Improved Aluminum Leg Carbon-fiber Leg Carbon-fiber Leg > --- UTILITY (5) ------ Improved Heat Sink Large Storage Unit High-capacity Storage Unit High-capacity Storage Unit High-capacity Matter Pod > --- WEAPON (2) ------- Particle Gun Particle Gun > --- INVENTORY (26) --- Reinforced Fission Core Aluminum Leg Aluminum Leg Aluminum Leg Signal Interpreter Advanced Terrain Scanner 8R-AWN's Armor/EX Relay Coupler [NC] (32) Relay Coupler [NC] (26) Relay Coupler [Swarmer] (37) Relay Coupler [Grunt] (21) Relay Coupler [Grunt] (28) Relay Coupler [Grunt] (25) Relay Coupler [Grunt] (31) Relay Coupler [Sentry] (22) Relay Coupler [Sentry] (22) Relay Coupler [Sentry] (25) Relay Coupler [Hunter] (16) Advanced Component Analysis Suite Assault Rifle 8R-AWN's Boregun Advanced EMP Blaster Advanced EMP Blaster Katana Peak State ------------ > --- POWER ------------ Reinforced Fission Core > --- PROPULSION ------- Advanced Treads Advanced Treads Advanced Myomer Leg > --- UTILITY ---------- Large Storage Unit High-capacity Storage Unit High-capacity Storage Unit Experimental Targeting Computer Hardened Light Armor Plating > --- WEAPON ----------- Heavy Assault Rifle Light Cannon > --- INVENTORY -------- Experimental Heat Sink Large Storage Unit High-capacity Matter Pod Signal Interpreter Improved Terrain Scanner Hardened Light Armor Plating Hardened Light Armor Plating Hardened Light Armor Plating Hardened Light Armor Plating Hardened Light Armor Plating 8R-AWN's Armor/TH 8R-AWN's Armor/EX Advanced Component Analysis Suite System Purifier AS-neutralizer No. 17b Beam Rifle Heavy Assault Rifle 8R-AWN's Boregun Grenade Launcher Grenade Launcher Grenade Launcher Grenade Launcher Rocket Launcher Mining Claw [Rating: 44] Favorites ----------- Power Improved Ion Engine Engine Improved Ion Engine Power Core Reinforced Fission Core Propulsion Light Treads Treads Light Treads Leg Aluminum Leg Utility Large Storage Unit Device Improved Heat Sink Storage Large Storage Unit Processor Experimental Targeting Computer Protection Hardened Light Armor Plating Weapon Heavy Assault Rifle Energy Gun Particle Gun Ballistic Gun Heavy Assault Rifle Ballistic Cannon Light Cannon Launcher Advanced EMP Blaster Impact Weapon Heavy Mace Slashing Weapon Mining Claw Build | -11 -10 -10 -9 -9 -9 -8 -8 -8 -8 ------- Run | Scr Mat Min Mat Min Exi Min Mat Gar Mat Slots Evolved 4 | . . . 2 . . . 2 . . Power . | . . . . . . . . . . Propulsion 1 | . . . . . . . 1 . . Utility 3 | . . . 2 . . . 1 . . Weapon . | . . . . . . . . . . Parts Attached 162 | 1 10 . 26 3 39 3 20 20 40 Power 13 | . 2 . 3 . 2 . 3 2 1 Engine 10 | . 2 . 3 . 1 . 2 1 1 Core 3 | . . . . . 1 . 1 1 . Reactor . | . . . . . . . . . . Propulsion 42 | . 1 . 10 1 6 1 6 5 12 Treads 21 | . . . 4 1 5 . 6 1 4 Leg 21 | . 1 . 6 . 1 1 . 4 8 Wheel . | . . . . . . . . . . Hover . | . . . . . . . . . . Flight . | . . . . . . . . . . Utility 45 | . 5 . 5 2 16 . 7 1 9 Device 7 | . 1 . . . 4 . . . 2 Storage 17 | . 4 . 4 2 4 . 2 . 1 Processor 2 | . . . 1 . . . 1 . . Hackware . | . . . . . . . . . . Protection 19 | . . . . . 8 . 4 1 6 Artifact . | . . . . . . . . . . Weapon 62 | 1 2 . 8 . 15 2 4 12 18 Energy Gun 7 | . . . 1 . 4 . . . 2 Energy Cannon . | . . . . . . . . . . Ballistic Gun 23 | 1 1 . 5 . 4 1 2 5 4 Ballistic Cannon 13 | . 1 . . . 2 . 2 4 4 Launcher 15 | . . . 2 . 3 1 . 3 6 Special Weapon . | . . . . . . . . . . Impact Weapon 1 | . . . . . . . . . 1 Slashing Weapon 3 | . . . . . 2 . . . 1 Piercing Weapon . | . . . . . . . . . . Special Melee Weapon . | . . . . . . . . . . Unidentified Prototypes 7 | . . . . . 7 . . . . Parts Lost 37 | . . . 3 . 10 2 4 2 16 Power 3 | . . . 1 . 2 . . . . Propulsion 16 | . . . . . 4 2 2 1 7 Utility 5 | . . . . . 1 . 1 . 3 Weapon 13 | . . . 2 . 3 . 1 1 6 Highest Loss Streak 6 | . . . 1 . 6 1 2 1 5 Average Slot Usage (%) 98 | . 97 100 99 100 97 96 97 99 96 Engine 8 | . 13 14 10 11 6 . 4 5 9 Core 2 | . . . . . 3 11 4 3 . Treads 14 | . . . 5 22 22 12 24 15 12 Leg 9 | . 28 28 16 . . 6 . 11 12 Storage 28 | . 25 28 33 33 28 33 27 27 27 Processor 7 | . . . 10 11 6 . 9 9 8 Protection 5 | . . . . . 7 11 8 9 7 Energy Gun 1 | . 5 . 1 . 1 . . . . Ballistic Gun 11 | . 20 14 10 22 11 10 11 9 6 Ballistic Cannon 6 | . 1 14 9 . 4 11 6 8 7 Naked Turns . | . . . . . . . . . . Heaviest Build 114 | 10 42 42 60 92 114 112 112 107 107 Greatest Support 66 | 20 20 20 40 40 40 40 66 62 62 Greatest Overweight (x) 10 | . 2 2 3 2 2 3 5 2 10 Average Overweight (x) 1 | . . 2 1 1 1 2 1 1 1 Largest Inventory Capacity 26 | 6 16 16 22 26 26 26 26 26 26 Average Capacity 23 | 6 13 16 22 22 23 26 26 26 26 Most Carried 26 | 6 16 16 22 26 26 26 26 26 26 Average Carried 22 | 6 12 15 20 22 21 25 25 25 25 Final Capacity 26 | 6 16 16 22 26 26 26 26 26 26 Final Carried 26 | 6 16 16 22 26 26 25 26 26 25 Class Distribution -------------------- 78% | Hauler-Mutant 12% | Mutant 9% | Scavenger-Mutant Dominant Class ---------------- Mutant | -10/Materials Mutant | -10/Mines Hauler-Mutant | -9/Materials Hauler-Mutant | -9/Mines Hauler-Mutant | -9/Exiles Hauler-Mutant | -8/Mines Hauler-Mutant | -8/Materials Hauler-Mutant | -8/Garrison Hauler-Mutant | -8/Materials Resources | -11 -10 -10 -9 -9 -9 -8 -8 -8 -8 ----------- Run | Scr Mat Min Mat Min Exi Min Mat Gar Mat Matter Collected 5074 | 194 381 45 594 182 349 226 1097 432 1574 Remotely . | . . . . . . . . . . Salvage Created 5725 | . 399 81 972 113 160 228 1350 473 1949 Parts 312 | . 31 5 58 2 22 6 62 27 99 Haulers Intercepted 7 | . 1 . 1 . . . 2 . 3 Recyclers Shooed 1 | . . . . . . . 1 . . Parts Field Recycled . | . . . . . . . . . . Retrieved Matter . | . . . . . . . . . . Parts Self-Destructed . | . . . . . . . . . . Prevented . | . . . . . . . . . . Kills | -11 -10 -10 -9 -9 -9 -8 -8 -8 -8 ------- Run | Scr Mat Min Mat Min Exi Min Mat Gar Mat Combat Hostiles Destroyed 151 | . 12 2 24 3 8 9 28 19 46 Melee 2 | . . . . . 1 . . . 1 Guns 48 | . 12 2 9 3 . 2 7 5 8 Cannons 54 | . . . 11 . 1 3 21 6 12 AOE 47 | . . . 4 . 6 4 . 8 25 Classes Destroyed 15 | . 4 . 4 1 . . 2 . 4 Worker 5 | . . . 1 . . . 1 . 3 Builder 8 | . . . . . . . 1 . 7 Hauler 7 | . 1 . 1 . . . 2 . 3 Recycler 5 | . 1 . . 1 . . 1 . 2 Mechanic 2 | . . . . . . . . . 2 Operator 4 | . . . 2 . . . 1 . 1 Watcher 2 | . . . . . . . . . 2 Swarmer 23 | . 9 . . . . 3 . 7 4 Grunt 88 | . 3 2 18 . . 6 19 10 30 Brawler 4 | . . . . . . . 1 1 2 Duelist 9 | . . . 1 . . . 2 1 5 Protector 2 | . . . . . . . . . 2 Sentry 13 | . . . 5 . . . 6 . 2 Hunter 1 | . . . . . . . . . 1 Assembled 10 | . . . . 3 7 . . . . Best Kill Streak 18 | . 3 2 7 1 7 4 7 4 18 Combat Bots Only 13 | . 3 2 6 1 7 4 7 4 13 Max Kills in Single Turn 5 | . 2 1 2 1 5 1 2 3 5 Gunslinging 1 | . 1 . . . . . . . . Exploded 5 | . . . 2 . 5 1 . 3 4 Melee 1 | . . . . . 1 . . . 1 Uniques/NPCs Destroyed 2 | . . . . . 2 . . . . EX-BIN (-9/Exiles) 8R-AWN (-9/Exiles) Combat | -11 -10 -10 -9 -9 -9 -8 -8 -8 -8 -------- Run | Scr Mat Min Mat Min Exi Min Mat Gar Mat Damage Taken 8664 | . 319 60 1057 53 1582 334 1732 594 2933 Core 1027 | . 96 17 146 . 177 32 190 56 313 Absorbed by Shields . | . . . . . . . . . . Core Remaining (%) 55 | 100 . 54 . . . 11 . . . Volleys Fired 408 | . 22 5 67 9 23 18 88 54 122 Largest 2 | . 2 2 2 2 2 2 2 2 2 Hottest 130 | . 60 55 100 43 80 58 67 67 130 Shots Fired 734 | . 44 10 130 18 35 31 176 87 203 Gun 443 | . 44 5 74 18 26 13 107 49 107 Cannon 244 | . . 5 52 . 1 13 69 34 70 Launcher 47 | . . . 4 . 8 5 . 4 26 Special . | . . . . . . . . . . Kinetic 624 | . 31 10 118 18 5 26 176 83 157 Thermal 41 | . 13 . 8 . . . . . 20 Explosive 34 | . . . 4 . 8 5 . 4 13 Electromagnetic 35 | . . . . . 22 . . . 13 Robot Hit Streak 24 | . 13 7 12 4 11 8 24 20 15 Robot Miss Streak 9 | . 2 1 3 4 4 3 3 9 4 Penetration Max . | . . . . . . . . . . Secondary Targets 5 | . 4 . . . . . . . 1 Max Gunslinging Chain 1 | . 1 . . . . . . . 1 Shots Hit Robots 581 | . 32 7 92 7 50 18 151 61 163 Core Hits 409 | . 16 4 47 5 27 21 101 54 134 Critical Hits 8 | . 1 . 2 . . 1 1 1 2 Critical Kills 5 | . 1 . 2 . . . 1 1 . Critical Parts Destroyed 3 | . . . . . . 1 . . 2 Melee Attacks 44 | . . . . . 35 . . . 9 Impact 9 | . . . . . . . . . 9 Slashing 35 | . . . . . 35 . . . . Piercing . | . . . . . . . . . . Sneak Attacks 2 | . . . . . 1 . . . 1 Combat Hostiles . | . . . . . . . . . . Follow-up Attacks . | . . . . . . . . . . Damage Inflicted 15222 | . 368 102 1725 89 1144 707 2629 1565 6893 Guns 4388 | . 368 51 798 89 55 150 1326 438 1113 Cannons 3725 | . . 51 597 . 16 149 1298 603 1011 Explosions 6168 | . . . 321 . 431 408 . 524 4484 Melee 927 | . . . . . 642 . . . 285 Ramming 14 | . . . 9 . . . 5 . . Kinetic 7678 | . 246 102 1286 89 55 299 2624 1041 1936 Thermal 487 | . 122 . 109 . . . . . 256 Explosive 5080 | . . . 321 . 431 408 . 524 3396 Electromagnetic 1036 | . . . . . 16 . . . 1020 Impact 285 | . . . . . . . . . 285 Slashing 642 | . . . . . 642 . . . . Piercing . | . . . . . . . . . . Highest Corruption 1 | . . . . . . . . . 1 Average Corruption 1 | . . . . . . . . . 1 Corruption Purged . | . . . . . . . . . . Effects 3 | . . . . . . . . . 3 Message Errors 2 | . . . . . . . . . 2 Data Loss (minor) 1 | . . . . . . . . . 1 Overload Shots . | . . . . . . . . . . Overflow Damage 327 | . . . . . . . . 3 324 Projectiles 15 | . . . . . . . . 3 12 Explosions 242 | . . . . . . . . . 242 Melee 70 | . . . . . . . . . 70 Knockbacks 56 | . . . 2 . . . 12 15 27 Impact 2 | . . . . . . . . . 2 Kinetic 49 | . . . 2 . . . 12 13 22 Secondary 5 | . . . . . . . . 2 3 Self-Inflicted Damage 457 | . . . 4 . 98 . . 19 336 Shots 15 | . . . . . 5 . . 2 8 Rammed 2 | . . . 1 . . . 1 . . Targets Rammed 2 | . . . 1 . . . 1 . . Kicked . | . . . . . . . . . . Crushed . | . . . . . . . . . . Highest Temperature 280 | . 48 8 216 . 213 280 167 183 249 Average Temperature 58 | . 24 4 44 . 111 98 38 51 62 Received Heat Transfer 2808 | . 60 33 474 . . 153 756 279 1053 Effects 5 | . . . . . 3 1 . . 1 Energy Bleed 2 | . . . . . . 1 . . 1 Interference 3 | . . . . . 3 . . . . Siege Activations . | . . . . . . . . . . Robots Corrupted . | . . . . . . . . . . Combat Hostiles . | . . . . . . . . . . Parts Fried 5 | . . . . . . . . . 5 Impact Corruptions 4 | . . . . . . . . . 4 Robots Melted . | . . . . . . . . . . Combat Hostiles . | . . . . . . . . . . Parts Melted 1 | . 1 . . . . . . . . Heat Transferred 1078 | . 275 . 259 . . . . . 544 Parts Sabotaged . | . . . . . . . . . . Parts Stolen . | . . . . . . . . . . Parts Stripped . | . . . . . . . . . . Power Chain Reactions 5 | . . . . . . . . . 5 Missiles Intercepted . | . . . . . . . . . . Alert | -11 -10 -10 -9 -9 -9 -8 -8 -8 -8 ------- Run | Scr Mat Min Mat Min Exi Min Mat Gar Mat Peak Influence 1372 | . 202 50 281 144 . 224 595 1076 1372 Average Influence 394 | . 79 10 114 55 . 116 316 793 869 Maximum Alert Level 4 | . 1 . 1 . . 1 2 3 4 Low Security (%) 43 | 100 92 100 73 100 . 79 19 . . Level 1 16 | . 7 . 26 . . 20 52 4 . Level 2 15 | . . . . . . . 28 34 23 Level 3 22 | . . . . . . . . 61 62 Level 4 2 | . . . . . . . . . 14 Level 5 . | . . . . . . . . . . High Security . | . . . . . . . . . . Max Security . | . . . . . . . . . . Squads Dispatched 20 | . 3 . 2 . . . 4 . 11 Investigation 5 | . 1 . . . . . 2 . 2 Extermination . | . . . . . . . . . . Reinforcement 9 | . 2 . 2 . . . 1 . 4 Assault 6 | . . . . . . . 1 . 5 Garrison . | . . . . . . . . . . Intercept . | . . . . . . . . . . Construction Impeded 2 | . . . . . . . . . 2 Haulers Reinforced . | . . . . . . . . . . Stealth | -11 -10 -10 -9 -9 -9 -8 -8 -8 -8 --------- Run | Scr Mat Min Mat Min Exi Min Mat Gar Mat Distress Signals 7 | . 1 . 2 . . . 1 . 3 Communications Jammed . | . . . . . . . . . . Distress Signals . | . . . . . . . . . . Times Spotted 236 | . 22 2 37 6 8 12 43 21 85 Peak Tracking Total 17 | . 4 2 5 17 9 5 7 8 12 Tactical Retreats 20 | . 1 . . 2 . 2 1 4 10 Traps | -11 -10 -10 -9 -9 -9 -8 -8 -8 -8 ------- Run | Scr Mat Min Mat Min Exi Min Mat Gar Mat Traps Triggered 9 | . 1 . . . . . . 6 2 Indirectly . | . . . . . . . . . . Trap Hack Attempts . | . . . . . . . . . . Triggered . | . . . . . . . . . . Disarmed . | . . . . . . . . . . Reprogrammed . | . . . . . . . . . . Reused . | . . . . . . . . . . Traps Extracted . | . . . . . . . . . . Installed . | . . . . . . . . . . Triggered . | . . . . . . . . . . Machines | -11 -10 -10 -9 -9 -9 -8 -8 -8 -8 ---------- Run | Scr Mat Min Mat Min Exi Min Mat Gar Mat Machines Disabled 17 | . . . 1 2 2 1 3 4 4 Max in Single Turn 1 | . . . 1 1 1 1 1 1 1 Garrison Relay 4 | . . . . . . . . 4 . Machines Sabotaged . | . . . . . . . . . . Garrisons Compromised . | . . . . . . . . . . Overloaded Fab Kills . | . . . . . . . . . . Fab Network Shutdowns . | . . . . . . . . . . Hacking | -11 -10 -10 -9 -9 -9 -8 -8 -8 -8 --------- Run | Scr Mat Min Mat Min Exi Min Mat Gar Mat Machines Accessed 18 | . 4 . 3 . 1 . 8 . 2 Terminals 15 | . 4 . 3 . . . 6 . 2 Fabricators . | . . . . . . . . . . Repair Stations . | . . . . . . . . . . Recycling Units . | . . . . . . . . . . Scanalyzers 1 | . . . . . . . 1 . . Garrison Access 1 | . . . . . . . 1 . . Total Hacks 64 | . 15 . 15 . 1 . 29 . 4 Successful 34 | . 8 . 9 . 1 . 15 . 1 Failed 30 | . 7 . 6 . . . 14 . 3 Catastrophic 1 | . . . . . . . 1 . . Database Lockouts . | . . . . . . . . . . Manual 39 | . 9 . 12 . . . 14 . 4 Terminals 51 | . 15 . 15 . . . 17 . 4 Fabricators . | . . . . . . . . . . Repair Stations . | . . . . . . . . . . Recycling Units . | . . . . . . . . . . Scanalyzers 10 | . . . . . . . 10 . . Garrison Access 2 | . . . . . . . 2 . . Terminal Hacks 13 | . 5 . 6 . 1 . 1 . . Record 2 | . . . 1 . 1 . . . . Part Schematic 1 | . . . 1 . . . . . . Robot Analysis 2 | . 1 . . . . . 1 . . Prototype ID Bank 1 | . . . 1 . . . . . . Branch Access Points 2 | . 1 . 1 . . . . . . Alert Level 1 | . . . 1 . . . . . . Unreport Threat 2 | . 1 . 1 . . . . . . Locate Traps 2 | . 2 . . . . . . . . Fabricator Hacks . | . . . . . . . . . . Repair Station Hacks . | . . . . . . . . . . Recycling Unit Hacks . | . . . . . . . . . . Scanalyzer 8 | . . . . . . . 8 . . Insert Component 3 | . . . . . . . 3 . . Analyze 5 | . . . . . . . 5 . . Garrison Access Hacks 1 | . . . . . . . 1 . . Unlock Access 1 | . . . . . . . 1 . . Unauthorized Hacks 12 | . 3 . 3 . . . 5 . 1 Terminals 12 | . 3 . 3 . . . 5 . 1 Track 1 | . 1 . . . . . . . . Botnet 11 | . 2 . 3 . . . 5 . 1 Fabricators . | . . . . . . . . . . Repair Stations . | . . . . . . . . . . Recycling Units . | . . . . . . . . . . Scanalyzers . | . . . . . . . . . . Garrison Access . | . . . . . . . . . . Data Cores Recovered 2 | . . . 1 . . . 1 . . Used 1 | . . . . . . . 1 . . Hacking Detections 16 | . 4 . 3 . . . 7 . 2 Full Trace Events 3 | . . . . . . . 2 . 1 Feedback Events . | . . . . . . . . . . Feedback Blocked . | . . . . . . . . . . Robot Schematics Acquired . | . . . . . . . . . . Robots Built . | . . . . . . . . . . Matter . | . . . . . . . . . . Time . | . . . . . . . . . . Total Robot Build Rating . | . . . . . . . . . . Part Schematics Acquired 3 | . . . 1 . . . 2 . . Parts Built . | . . . . . . . . . . Matter . | . . . . . . . . . . Time . | . . . . . . . . . . Total Part Build Rating . | . . . . . . . . . . Parts Repaired . | . . . . . . . . . . Time . | . . . . . . . . . . Parts Recycled . | . . . . . . . . . . Recycled Matter . | . . . . . . . . . . Retrieved Matter . | . . . . . . . . . . Retrieved Components . | . . . . . . . . . . Parts Scanalyzed 2 | . . . . . . . 2 . . Part Schematics Acquired 2 | . . . . . . . 2 . . Parts Damaged 2 | . . . . . . . 2 . . Bothacking | -11 -10 -10 -9 -9 -9 -8 -8 -8 -8 ------------ Run | Scr Mat Min Mat Min Exi Min Mat Gar Mat Used RIF Installer 1 | . . . . . . . . 1 . Robots Hacked . | . . . . . . . . . . Non-combat . | . . . . . . . . . . Combat . | . . . . . . . . . . Robot Hacks Applied . | . . . . . . . . . . Relay Couplers Released 16 | . . . . . . . . 16 . Machine Destruction 16 | . . . . . . . . 16 . Robots Rewired . | . . . . . . . . . . Allies Hacked . | . . . . . . . . . . Hacks Repelled . | . . . . . . . . . . Allies | -11 -10 -10 -9 -9 -9 -8 -8 -8 -8 -------- Run | Scr Mat Min Mat Min Exi Min Mat Gar Mat Total Allies . | . . . . . . . . . . Largest Group . | . . . . . . . . . . Highest-Rated Group . | . . . . . . . . . . Highest-Rated Ally . | . . . . . . . . . . Total Orders . | . . . . . . . . . . Ally Attacks . | . . . . . . . . . . Total Damage . | . . . . . . . . . . Kills . | . . . . . . . . . . Allies Corrupted . | . . . . . . . . . . Allies Melted . | . . . . . . . . . . Intel | -11 -10 -10 -9 -9 -9 -8 -8 -8 -8 ------- Run | Scr Mat Min Mat Min Exi Min Mat Gar Mat Robot Analysis Total 2 | . 1 . . . . . 1 . . Derelict Logs Recovered 2 | . . 1 . 1 . . . . . Drone Launches . | . . . . . . . . . . Drone Recoveries . | . . . . . . . . . . Exploration | -11 -10 -10 -9 -9 -9 -8 -8 -8 -8 ------------- Run | Scr Mat Min Mat Min Exi Min Mat Gar Mat Turns Passed 8698 | 2 802 302 1188 816 1179 349 1384 1170 1506 Spaces Moved 3786 | 1 474 153 527 395 458 144 587 528 519 Core . | . . . . . . . . . . Treads 2179 | . . . 121 395 458 62 527 336 280 Legs 1607 | 1 474 153 406 . . 82 60 192 239 Wheels . | . . . . . . . . . . Hover . | . . . . . . . . . . Flight . | . . . . . . . . . . Fastest Speed 120 | 120 120 180 150 180 180 200 165 175 175 Average Speed 177 | 120 146 180 166 182 197 205 172 181 187 Slowest Speed 420 | 120 180 180 210 200 200 210 245 192 420 Overloaded Moves . | . . . . . . . . . . Propulsion Burnouts . | . . . . . . . . . . Robots Hopped . | . . . . . . . . . . Cave-ins Triggered . | . . . . . . . . . . Exploration Rate (%) 50 | 2 82 51 48 58 52 34 56 83 38 Regions Visited 9 Branch Regions 4 Pre-discovered Areas 2 | . . . . 1 1 . . . . Known Exits Taken 3 | . 1 . 1 . . . 1 . . Unknown Exits Taken 5 | 1 . 1 . 1 1 1 . . . Scrap Searched 3 | . . 2 . 1 . . . . . Spaces Dug . | . . . . . . . . . . Terrain Destroyed 242 | . . . 20 . 35 29 . 21 137 Melee . | . . . . . . . . . . Projectile 10 | . . . . . . . . 5 5 AOE 232 | . . . 20 . 35 29 . 16 132 Actions | -11 -10 -10 -9 -9 -9 -8 -8 -8 -8 --------- Run | Scr Mat Min Mat Min Exi Min Mat Gar Mat Total 4978 | 1 544 171 712 473 624 165 796 657 835 Wait 303 | . 8 10 44 61 20 1 52 7 100 Move 3778 | . 473 152 526 394 457 143 587 527 519 Hop . | . . . . . . . . . . Pick Up 136 | . 16 2 24 4 30 . 23 17 20 Fast Attach 42 | . 4 . 7 1 10 . 5 2 13 Attach 43 | . 1 . 7 . 11 1 7 6 10 Detach 9 | . 1 . . . 7 . . . 1 Swap 77 | 1 5 . 12 2 18 2 8 12 17 Drop 121 | . 14 2 24 2 13 . 25 17 24 Fire 408 | . 22 5 67 9 23 18 88 54 122 Melee 44 | . . . . . 35 . . . 9 Ram . | . . . . . . . . . . Kick 1 | . . . 1 . . . . . . Crush 1 | . . . . . . . 1 . . Escape Stasis 15 | . . . . . . . . 15 . Rewire . | . . . . . . . . . . Trap . | . . . . . . . . . . Miscellaneous . | . . . . . . . . . . Route ------- -11/Scrapyard -10/Materials (discovered 4 exits: *Mat x3 / *Min) -10/Mines -9/Materials (discovered 2 exits: *Mat / *Min) -9/Mines (discovered 3 exits: *Mat x2 / *Exi) -9/Exiles -8/Mines -8/Materials (discovered 2 exits: [*Fac] / Gar) -8/Garrison (discovered 3 exits: *Mat x3) -8/Materials History --------- Turn | Location | Event 3 | -11/Scrapyard | Discovered new exit (range 0) 3 | -11/Scrapyard | Entered Materials 120 | -10/Materials | Discovered new exit (range 9) 245 | -10/Materials | Identified exit to Mines 276 | -10/Materials | Discovered new exit (range 8) 303 | -10/Materials | Build established: Mutant 586 | -10/Materials | Discovered new exit (range 6) 805 | -10/Materials | Entered Mines 977 | -10/Mines | Learned Materials terminal intel 1096 | -10/Mines | Discovered new exit (range 6) 1107 | -10/Mines | Entered Materials 1107 | -9/Materials | Evolved 2 slots: Utility x2 1108 | -9/Materials | Loaded intel: 12 terminal locations 1418 | -9/Materials | Build established: Hauler-Mutant 1634 | -9/Materials | Discovered new exit (range 3) 1662 | -9/Materials | Identified exit to Mines 2295 | -9/Materials | Entered Mines 2299 | -9/Mines | Learned location of Storage (-8) 2329 | -9/Mines | Received a Rocket Launcher from a helpful Derelict 2459 | -9/Mines | Assembled infested the area 2908 | -9/Mines | Discovered new exit (range 9) 3073 | -9/Mines | Discovered new exit (range 10) 3101 | -9/Mines | Deemed a non-threat by the Exiles lab entrance 3103 | -9/Mines | Discovered new exit (range 5) 3111 | -9/Mines | Entered Exiles 3141 | -9/Exiles | Discovered new exit (range 15) 3171 | -9/Exiles | Met 8R-AWN 3215 | -9/Exiles | Met EX-HEX 3293 | -9/Exiles | Met EX-DEC 3305 | -9/Exiles | Learned location of Zion (-7) 3343 | -9/Exiles | Met EX-BIN 3650 | -9/Exiles | Destroyed EX-BIN 3651 | -9/Exiles | Attacked by the Exiles 3709 | -9/Exiles | Destroyed 7 combat bots 3750 | -9/Exiles | Core integrity fell below 50% 3819 | -9/Exiles | Lost 6 parts (4n1u1w) 3845 | -9/Exiles | Core integrity fell below 20% 3879 | -9/Exiles | Destroyed 8R-AWN 3975 | -9/Exiles | Found Prototype Processor 3985 | -9/Exiles | Found Prototype Device 3985 | -9/Exiles | Identified AS-neutralizer No. 17b 3993 | -9/Exiles | Found Prototype Ballistic Gun 4022 | -9/Exiles | Found 8R-AWN's Armor/EX 4026 | -9/Exiles | Found 8R-AWN's Armor/TH 4121 | -9/Exiles | Found Prototype Device 4121 | -9/Exiles | Identified System Purifier 4131 | -9/Exiles | Identified 8R-AWN's Boregun 4281 | -9/Exiles | Identified Exp. Targeting Computer 4290 | -9/Exiles | Entered Mines 4632 | -8/Mines | Discovered new exit (range 3) 4639 | -8/Mines | Entered Materials 4639 | -8/Materials | Evolved 2 slots: Propulsion x1, Utility x1 5213 | -8/Materials | Discovered new exit (range 5) 5668 | -8/Materials | Destroyed 7 combat bots 5839 | -8/Materials | First assault squad dispatched 6023 | -8/Materials | Identified exit to Garrison 6023 | -8/Materials | Entered Garrison 6097 | -8/Garrison | Build established: Scavenger-Mutant 6130 | -8/Garrison | Triggered checkpoint 6165 | -8/Garrison | Garrison Relay disabled 6268 | -8/Garrison | Triggered checkpoint 6316 | -8/Garrison | Triggered checkpoint 6372 | -8/Garrison | Discovered new exit (range 10) 6422 | -8/Garrison | Triggered checkpoint 6476 | -8/Garrison | Garrison Relay disabled 6578 | -8/Garrison | Triggered checkpoint 6648 | -8/Garrison | Discovered new exit (range 10) 6679 | -8/Garrison | Installed Relay Interface Framework 6739 | -8/Garrison | Garrison Relay disabled 6756 | -8/Garrison | Triggered checkpoint 6779 | -8/Garrison | Build established: Hauler-Mutant 6974 | -8/Garrison | Triggered checkpoint 7021 | -8/Garrison | Discovered new exit (range 12) 7068 | -8/Garrison | Garrison Relay disabled 7193 | -8/Garrison | Entered Materials 7593 | -8/Materials | First assault squad dispatched 7673 | -8/Materials | Core integrity fell below 50% 7710 | -8/Materials | Lost 3 parts (2n1w) 7722 | -8/Materials | Destroyed 13 combat bots 8376 | -8/Materials | Core integrity fell below 20% 8390 | -8/Materials | Lost 4 parts (2n2w) 8498 | -8/Materials | Lost 5 parts (1n1u3w) 8525 | -8/Materials | Destroyed 9 combat bots 8699 | -8/Materials | Destroyed by Y-45 Defender with Beam Rifle Last Messages --------------- 08609_ Dropped Aluminum Leg. 08612_ R-06 Scavenger collects Wheel. 08619_ Acquired 29 matter. 08653_ G-47 Trooper destroyed. 08653_ Switching to secondary target: B-36 Bruiser. 08659_ M-13 Machinist fits Backup Laser I on G-47 Trooper. 08664_ G-47 Trooper IFF system glitched. 08664_ Destroyed Backup Laser I. 08665_ M-13 Machinist fits Backup Laser I on G-47 Trooper. 08667_ US:TXPAM38ZJMS6XB:TL4KQRWTYFU2SZ 08667_ G-47 Trooper destroyed. 08670_ Acquired 51 matter. 08672_ M-13 Machinist destroyed. 08675_ Acquired 3 matter. 08682_ W6ACJFTAITYU8R5 0AMWDTH0CSCGGHZM 08686_ Triggered Alarm Trap. 08686_ An alarm sounds. 08686_ ALERT: Alarm triggered, dispatching investigation squad. 08687_ Exp. Targeting Computer destroyed. [Achievement: Collector] Map ----- +----------------------------------------------------+ | ?????????????????????????????????????????????????? | | ?????????????????????????????????????????????????? | | ?????????????????????????????????????????????????? | | ?????????????????????????????????????????????????? | | ?????????????????????????????????????????????????? | | ?????????????????????????????????????????????????? | | ?????????????????????????????????????????????????? | | ?????????????????????????????????????????????????? | | ?????????????????????????????????????????????????? | | ?????????????????????????????????????????????????? | | ?????????????????????????????????????????????????? | | ?????????????????????????????????????????????????? | | ?????????????????????????????????????????????????? | | ?????????????????????????????????????????????????? | | ?????????????????????????????????????????????????? | | ????????????????????????????????#????????????????? | | ??????????????????????????????? +????????????????? | | ?????????????????????????????? #????????????????? | | ????????????????????????????? #????????????????? | | ?????????#??????????????????# ##???????????????? | | ????????? ############## #???????????????? | | ???????? #???????????????? | | ???????? #?????????? ????? | | ???????? #????????? #??? | | ???????????????## ####Y### #????????? #??? | | ?????????????????????# @ #??????#######?"" #?#? | | ?????????????????????# #????##### # ##"T # ?? | | ?????????????????????# #????# ## ###"" / ?? | | ?????????????????????# !"""#???## ### #??? | | ????????????????? ?#=%"""#???# # ###### ## | | ????????????????? ## k"""##### # =% | | ????????????????? ## = b %+! =######## | | ????????????????# #############*#! # ##????? | | ????????????????# ###############|= ####?? | | ????????????????# # ####### =% =## ### | | ????????????????# # # ###+######## | | ????????????????# # """ ! # = | | ????????????????# + """ # % % = % | | ????????????????# # """ !# %= * * | | ????????????????# # # % ################ | | ??????????####### ##### #### ####??????????? | | ??????????? # ##????????????? | | ????????????? " #????????????? | | ??????????????? ""##????????????? | | ????????????????# ] "" [ T"#?????????????? | | ???????########## """ ""#?????????????? | | ???????# # "" ""#?????????????? | | ???????# # " """ ###?????????????? | | #####??# % # """ """ ###########?????? | | """ #??# """ + "" # #?????? | +----------------------------------------------------+ Best States ------------- Heat Dissipation 54 Energy Generation 19 Energy Capacity 310 Matter Stores 300 Matter Capacity 300 Sight Range 16 Terrain Scan Density 10 Armor Coverage 300 Evasion (%) 40 Targeting Accuracy 12 Recoil Reduction 3 Item Schematics ----------------- Imp. Signal Interpreter | -9/Materials | Hacked Exp. Heat Sink | -8/Materials | Scanalyzed System Purifier | -8/Materials | Scanalyzed Robot Schematics ------------------ None Fabricated ------------ Nothing Alien Tech Used ----------------- None Achievements -------------- Collector Challenges ------------ None Game ------ Seed AntimatterAnalysisMallet Manual? 0 Play Time 01:24:03 Cumulative 177.2 hours Start 2020.07.01 @ 20:58:51 End 2020.07.01 @ 22:29:38 Sessions 1 Manual Loads 0 Difficulty Rogue Special Mode None Game No. 97 Rogue 95 Adventurer 1 Explorer 1 Win Type - Total 2 Types 2/0/0/0/0/0/0 Lore% 62 Gallery% 75 Achievement% 54 Wizard Run 0 Options --------- ASCII 0 Keyboard 1 Movement Numpad Keybinds 1 Fullscreen 2 Font 24/Terminus Map View 76x50 Tactical HUD 1 Map Filters NONE Filters NONE Steam 1 RUN: 76ba2fa0-e112-46b0-b01b-d49d9463855e